[Event "WYCC 2018 O16"]
[Site "Halkidiki"]
[Date "2018.10.21"]
[Round "3"]
[White "Araoz Andrade, Ivan Alexander"]
[Black "Jakab, Bela"]
[Result "0-1"]
[ECO "D10"]
[WhiteElo "1919"]
[BlackElo "2285"]
[Annotator "NA"]
[PlyCount "112"]
[EventDate "2018.10.20"]
[EventType "swiss"]
[EventCountry "GRE"]
[SourceTitle "playchess.com"]
[Source "ChessBase"]
[SourceQuality "1"]
[TimeControl "40/5400+30:1800+30"]

1. d4 {[%emt 0:00:00]} d5 {[%emt 0:00:00]} 2. c4 {[%emt 0:00:00]} c6 {[%emt 0:00:00]} 3. cxd5 {[%emt 0:00:00]} cxd5 {[%emt 0:00:00]} 4. Nc3 {[%emt 0:00:00]} Nf6 {[%emt 0:00:04]} 5. Bf4 {[%emt 0:00:08]} Nc6 6. e3 {[%emt 0:00:30]} a6 7. Bd3 Bg4 {[%emt 0:04:57]} 8. Nf3 {[%emt 0:01:38]} e6 {[%emt 0:00:54]} 9. O-O {[%emt 0:00:14]} Bd6 {[%emt 0:02:49]} 10. Bxd6 {[%emt 0:00:07]} Qxd6 {[%emt 0:00:05]} 11. Rc1 {[%emt 0:01:35]} O-O {[%emt 0:00:37]} 12. a3 {[%emt 0:01:01]} Rac8 {[%emt 0:06:13]} 13. Na4 {[%emt 0:03:05]} e5 {[%emt 0:07:54]} 14. dxe5 Nxe5 15. Be2 {[%emt 0:09:14]} Rxc1 {[%emt 0:11:35]} 16. Qxc1 {[%emt 0:00:47]} Nxf3+ {[%emt 0:00:17]} 17. Bxf3 {[%emt 0:00:14]} Bxf3 {[%emt 0:00:13]} 18. gxf3 $15 {[%emt 0:00:01]} Nd7 {[%emt 0:14:32]} 19. Nc3 {[%emt 0:06:35]} Ne5 {[%emt 0:20:31]} 20. Qd1 {[%emt 0:17:36]} Rd8 {[%emt 0:00:17]} 21. f4 {[%emt 0:03:24]} Nc4 {[%emt 0:02:37]} 22. Qe2 {[%emt 0:01:26]} Qg6+ {[%emt 0:01:11]} 23. Kh1 {[%emt 0:00:16]} Qc6 {[%emt 0:00:20]} 24. Kg1 {[%emt 0:02:54]} Rd6 {[%emt 0:04:35]} 25. Rd1 {[%emt 0:03:33]} d4 {[%emt 0:05:50]} 26. Ne4 {[%emt 0:04:20]} d3 {[%emt 0:05:22]} 27. Qg4 {[%emt 0:02:16]} h5 {[%emt 0:01:18]} 28. Qf5 {[%emt 0:01:58]} Rd5 {[%emt 0:03:42]} 29. Qh3 {[%emt 0:01:31]} Nxb2 {[%emt 0:00:13]} 30. Rd2 {[%emt 0:00:24]} Nc4 {[%emt 0:00:44]} 31. Rd1 {[%emt 0:00:32]} d2 {[%emt 0:01:07]} 32. Ng5 {[%emt 0:04:02]} Nb2 {[%emt 0:03:51]} 33. Qxh5 {[%emt 0:02:27]} Rxg5+ {[%emt 0:00:28]} 34. Qxg5 {[%emt 0:00:25]} Nxd1 {[%emt 0:00:06]} 35. Qd8+ {[%emt 0:00:26]} Kh7 {[%emt 0:00:05]} 36. Qxd2 {[%emt 0:00:16]} Nc3 {[%emt 0:00:51]} 37. f3 {[%emt 0:01:40]} b5 {[%emt 0:02:24]} 38. e4 {[%emt 0:00:58]} Qc5+ {[%emt 0:00:31]} 39. Kg2 {[%emt 0:00:24]} a5 {[%emt 0:01:31]} 40. Qd7 {[%emt 0:00:00]} Qb6 {[%emt 0:00:00]} 41. h4 {[%emt 0:05:33]} b4 {[%emt 0:07:19]} 42. h5 {[%emt 0:02:33]} Qe6 {[%emt 0:01:06]} 43. Qd3 {[%emt 0:01:05]} Kh6 {[%emt 0:09:58]} 44. Qd8 {[%emt 0:00:59]} Kh7 {[%emt 0:01:43]} 45. Qxa5 {[%emt 0:01:00]} bxa3 {[%emt 0:01:42]} 46. Qxc3 {[%emt 0:12:34]} Qa6 {[%emt 0:00:36]} 47. Kg3 {[%emt 0:03:56]} a2 {[%emt 0:00:33]} 48. Qa1 {[%emt 0:00:01]} Qa3 {[%emt 0:01:08]} 49. Kg4 {[%emt 0:01:19]} Qb3 {[%emt 0:01:53]} 50. h6 {[%emt 0:00:43]} gxh6 {[%emt 0:00:29]} 51. Kh5 {[%emt 0:03:35]} Qb1 {[%emt 0:00:49]} 52. Qf6 {[%emt 0:00:33]} Qh1+ {[%emt 0:00:30]} 53. Kg4 {[%emt 0:00:07]} a1=Q {[%emt 0:00:36]} 54. Qf5+ {[%emt 0:01:04]} Kg7 {[%emt 0:00:09]} 55. Qb5 {[%emt 0:00:25]} Qag1+ {[%emt 0:00:12]} 56. Kf5 {[%emt 0:00:02]} Qh5# {[%emt 0:00:13]} 0-1

[Event "WYCC 2018 O16"]
[Site "Halkidiki"]
[Date "2018.10.22"]
[Round "4"]
[White "Vrolijk, Liam"]
[Black "Davtyan, Artur"]
[Result "1/2-1/2"]
[ECO "D37"]
[WhiteElo "2437"]
[BlackElo "2374"]
[Annotator "NA"]
[PlyCount "191"]
[EventDate "2018.10.20"]
[EventType "swiss"]
[EventCountry "GRE"]
[SourceTitle "playchess.com"]
[Source "ChessBase"]
[SourceQuality "1"]
[TimeControl "40/5400+30:1800+30"]

1. c4 {[%emt 0:00:00] Krasenkow,M} e6 {[%emt 0:00:00]} 2. Nc3 {[%emt 0:00:00]} d5 {[%emt 0:00:00]} 3. d4 {[%emt 0:00:00]} Be7 {[%emt 0:00:06]} 4. Nf3 {[%emt 0:00:06]} Nf6 {[%emt 0:00:04]} 5. Bf4 {[%emt 0:00:08]} O-O {[%emt 0:01:52]} 6. e3 {[%emt 0:00:07]} Nbd7 {[%emt 0:00:06]} 7. a3 {[%emt 0:00:18] D37: Queen's Gambit Declined: 5 Bf4} c5 {[%emt 0:07:46]} 8. cxd5 {[%emt 0:00:14]} Nxd5 {[%emt 0:00:04]} 9. Nxd5 {[%emt 0:00:08]} exd5 {[%emt 0:00:01]} 10. dxc5 {[%emt 0:00:17]} Nxc5 {[%emt 0:00:06]} 11. Be5 {[%emt 0:00:22]} Bg4 {[%emt 0:00:59]} 12. Be2 {[%emt 0:00:16]} Bxf3 {[%emt 0:01:07]} 13. Bxf3 {[%emt 0:00:07]} Bf6 {[%emt 0:00:05]} 14. Bxf6 {[%emt 0:00:12]} Qxf6 {[%emt 0:00:01] [#]} 15. Qc2 $146 {[%emt 0:00:14]} Rac8 {[%emt 0:27:53]} 16. Bxd5 {[%emt 0:00:18]} Qa6 {[%emt 0:21:19]} 17. Rd1 {[%emt 0:00:32]} Na4 {[%emt 0:03:24]} 18. Qb3 {[%emt 0:02:01]} Qa5+ {[%emt 0:12:46]} 19. Kf1 {[%emt 0:00:50]} Qa6+ {[%emt 0:00:41]} 20. Kg1 {[%emt 0:02:30]} Nc5 {[%emt 0:01:27]} 21. Qc2 {[%emt 0:15:32]} Nd3 {[%emt 0:04:34]} 22. Qd2 {[%emt 0:24:19]} Qb5 {[%emt 0:01:20]} 23. h4 {[%emt 0:04:28]} Qxd5 {[%emt 0:04:21]} 24. Qxd3 {[%emt 0:00:09]} Qxd3 {[%emt 0:03:05]} 25. Rxd3 {[%emt 0:00:02]} Rfd8 {[%emt 0:00:04]} 26. Rxd8+ {[%emt 0:05:26]} Rxd8 {[%emt 0:00:04]} 27. h5 {[%emt 0:02:06]} Rd2 {[%emt 0:04:01]} 28. b4 {[%emt 0:01:38]} Ra2 {[%emt 0:06:07]} 29. Rh4 {[%emt 0:00:13]} Ra1+ {[%emt 0:00:35]} 30. Kh2 {[%emt 0:00:03]} Rxa3 {[%emt 0:00:28]} 31. Rc4 {[%emt 0:00:07]} h6 {[%emt 0:00:29]} 32. Rc8+ {[%emt 0:00:20]} Kh7 {[%emt 0:00:01]} 33. Rc7 {[%emt 0:00:08]} Ra4 {[%emt 0:01:02]} 34. Rxb7 $16 {[%emt 0:01:52]} Kg8 {[%emt 0:00:14]} 35. Kg3 {[%emt 0:06:23]} Ra3 {[%emt 0:00:34]} 36. Rb8+ {[%emt 0:01:13]} Kh7 {[%emt 0:00:01]} 37. Rf8 {[%emt 0:00:12]} f6 {[%emt 0:00:12]} 38. Kf3 {[%emt 0:03:20]} Rb3 {[%emt 0:00:36]} 39. Ra8 {[%emt 0:03:28]} Rxb4 {[%emt 0:00:13]} 40. Rxa7 {[%emt 0:00:00]} Kg8 {[%emt 0:00:00]} 41. g4 {[%emt 0:06:59]} Rb2 {[%emt 0:01:35]} 42. Kg3 {[%emt 0:00:15]} Re2 {[%emt 0:00:14]} 43. Rb7 {[%emt 0:00:39]} Kf8 {[%emt 0:00:20]} 44. Kf3 {[%emt 0:00:38]} Rc2 {[%emt 0:00:35]} 45. e4 Ra2 {[%emt 0:00:23]} 46. Ke3 {[%emt 0:00:59]} Rc2 {[%emt 0:03:35]} 47. Rd7 {[%emt 0:00:42]} Rc1 {[%emt 0:03:02]} 48. Kf4 {[%emt 0:00:47]} Rc5 {[%emt 0:00:26]} 49. f3 Ra5 {[%emt 0:00:59]} 50. Rd5 {[%emt 0:03:19]} Ra3 51. Rb5 Kf7 {[%emt 0:01:16]} 52. Rb7+ {[%emt 0:00:28]} Kg8 {[%emt 0:00:04]} 53. Rd7 {[%emt 0:01:23]} Kh7 54. Rb7 Rc3 {[%emt 0:06:22]} 55. Rb8 {[%emt 0:01:43]} Rd3 {[%emt 0:00:38]} 56. Kg3 {[%emt 0:00:14]} Ra3 {[%emt 0:00:18]} 57. Rd8 {[%emt 0:00:01]} Ra4 58. Kf2 {[%emt 0:00:09]} Ra2+ {[%emt 0:09:50]} 59. Ke3 {[%emt 0:00:07]} Ra3+ {[%emt 0:02:00]} 60. Rd3 {[%emt 0:04:21]} Ra1 {[%emt 0:00:48]} 61. Kd4 Kg8 62. Kc5 {[%emt 0:01:29]} Rf1 {[%emt 0:01:05]} 63. Kd5 {[%emt 0:02:49]} Kf7 {[%emt 0:01:09]} 64. Kd4 {[%emt 0:00:11]} Re1 {[%emt 0:01:03]} 65. Rc3 Rd1+ {[%emt 0:00:13]} 66. Ke3 {[%emt 0:00:35]} Ra1 {[%emt 0:00:38]} 67. Rc5 {[%emt 0:01:04]} Ra3+ {[%emt 0:01:51]} 68. Kf4 {[%emt 0:01:54]} Kf8 {[%emt 0:00:47]} 69. Rb5 {[%emt 0:00:36]} Kf7 {[%emt 0:00:12]} 70. Rb7+ Kg8 71. Re7 {[%emt 0:01:01]} Ra5 {[%emt 0:00:49]} 72. Rd7 {[%emt 0:00:12]} Kf8 {[%emt 0:00:49]} 73. Rd5 {[%emt 0:01:47]} Ra3 {[%emt 0:00:00]} 74. Rc5 {[%emt 0:00:35]} Kf7 75. e5 {[%emt 0:00:22]} fxe5+ {[%emt 0:00:25]} 76. Rxe5 Rb3 {[%emt 0:00:19]} 77. Rc5 {[%emt 0:00:31]} Ra3 {[%emt 0:00:20]} 78. Ke4 {[%emt 0:00:09]} Ra6 {[%emt 0:00:38]} 79. f4 Re6+ 80. Kd5 {[%emt 0:01:13]} Re3 {[%emt 0:01:16]} 81. Rc7+ {[%emt 0:00:09]} Kf6 {[%emt 0:00:28]} 82. Rc6+ {[%emt 0:00:23]} Kf7 {[%emt 0:00:04]} 83. Rg6 {[%emt 0:00:07]} Re1 {[%emt 0:00:16]} 84. Kd4 {[%emt 0:00:30]} Ra1 {[%emt 0:00:45]} 85. f5 {[%emt 0:00:38]} Ra4+ {[%emt 0:00:04]} 86. Ke3 {[%emt 0:00:06]} Ra3+ {[%emt 0:00:36]} 87. Kf4 Ra4+ {[%emt 0:00:00]} 88. Kg3 {[%emt 0:00:13]} Ra3+ 89. Kh4 {[%emt 0:00:08]} Rf3 {[%emt 0:00:28]} 90. Ra6 {[%emt 0:00:06]} Ke7 {[%emt 0:00:18]} 91. Re6+ {[%emt 0:00:14]} Kf7 {[%emt 0:00:01]} 92. Rg6 {[%emt 0:00:09]} Kf8 {[%emt 0:01:31]} 93. g5 {[%emt 0:00:41]} Rf4+ {[%emt 0:00:11]} 94. Kg3 {[%emt 0:00:06]} Rxf5 {[%emt 0:00:11]} 95. gxh6 {[%emt 0:00:09]} Rxh5 {[%emt 0:00:26]} 96. Rxg7 {[%emt 0:00:06]} 1/2-1/2

[Event "WYCC 2018 O16"]
[Site "Halkidiki"]
[Date "2018.10.22"]
[Round "4"]
[White "Blohberger, Felix"]
[Black "Stevanic, David"]
[Result "1-0"]
[ECO "C88"]
[WhiteElo "2433"]
[BlackElo "2281"]
[Annotator "NA"]
[PlyCount "73"]
[EventDate "2018.10.20"]
[EventType "swiss"]
[EventCountry "GRE"]
[SourceTitle "playchess.com"]
[Source "ChessBase"]
[SourceQuality "1"]
[TimeControl "40/5400+30:1800+30"]

1. e4 {[%emt 0:00:00]} e5 {[%emt 0:00:00]} 2. Nf3 {[%emt 0:00:00]} Nc6 {[%emt 0:00:00]} 3. Bb5 {[%emt 0:00:00]} a6 {[%emt 0:00:00]} 4. Ba4 {[%emt 0:00:00]} Nf6 {[%emt 0:00:00]} 5. O-O {[%emt 0:00:03]} Be7 {[%emt 0:00:00] LiveBook: 36347 Games} 6. Re1 {[%emt 0:00:15]} b5 {[%emt 0:00:11]} 7. Bb3 {[%emt 0:00:06]} O-O {[%emt 0:00:05]} 8. a4 {[%emt 0:00:40]} b4 {[%emt 0:03:49]} 9. a5 {[%emt 0:00:21]} d6 {[%emt 0:01:56]} 10. d3 {[%emt 0:00:30]} Bg4 {[%emt 0:02:23]} 11. c3 {[%emt 0:00:17] C88: Closed Ruy Lopez: Anti-Marshall Systems} (11. Nbd2 Nd4 12. Bc4 c5 13. h3 Bxf3 14. Nxf3 Nc6 15. Bg5 Nxa5 16. Bxf6 Bxf6 17. Bd5 Ra7 18. c3 Qb6 {½-½ (57) Barbosa,O (2538)-Wang,Y (2716) Jakarta 2011}) 11... d5 {[%emt 0:03:27]} 12. h3 {[%emt 0:10:10]} Bxf3 {[%emt 0:09:10]} 13. Qxf3 {[%emt 0:00:09]} dxe4 $146 {[%emt 0:04:04]} ({Predecessor:} 13... bxc3 14. bxc3 d4 15. Bd5 Nxd5 16. exd5 Na7 17. c4 f6 18. Nd2 Bb4 {0-1 (47) Tyehimba,B (2230)-Fenster,D Chicago 1996}) 14. dxe4 {[%emt 0:00:17]} bxc3 {[%emt 0:00:21]} 15. bxc3 {[%emt 0:00:26]} Rb8 {[%emt 0:01:24]} 16. Nd2 {[%emt 0:15:58]} Bc5 {[%emt 0:11:44]} 17. Bc4 {[%emt 0:01:55]} Qc8 {[%emt 0:03:04]} 18. Qe2 {[%emt 0:11:20]} Qb7 {[%emt 0:07:53]} (18... Ra8 $16 19. Nb3 Be7) 19. Nb3 {[%emt 0:09:34]} ({Don't play} 19. Bxa6 $6 Qa7 $16) (19. Nf3 $18) 19... Bd6 {[%emt 0:02:31]} 20. Bg5 {[%emt 0:04:11]} Na7 {[%emt 0:06:47]} 21. Bxf6 {[%emt 0:14:02]} gxf6 {[%emt 0:00:06]} 22. Rad1 {[%emt 0:00:50]} Nb5 {[%emt 0:07:22]} 23. Qg4+ {[%emt 0:01:37]} Kh8 {[%emt 0:00:36]} 24. Qf5 {[%emt 0:01:55]} Be7 {[%emt 0:00:43]} 25. Bxb5 {[%emt 0:03:22]} Qxb5 {[%emt 0:01:02]} 26. Rd7 {[%emt 0:00:29]} Bd8 {[%emt 0:07:22]} 27. Nd2 {[%emt 0:08:00]} c5 {[%emt 0:03:31]} 28. Nf1 {[%emt 0:00:58]} Qc6 $18 {[%emt 0:01:54]} 29. Red1 {[%emt 0:00:49]} Qe6 {[%emt 0:00:07]} 30. Qh5 {[%emt 0:03:35]} Be7 {[%emt 0:00:07]} 31. Ne3 {[%emt 0:00:38]} Rb1 {[%emt 0:03:14]} 32. Kh2 {[%emt 0:02:33]} Rxd1 {[%emt 0:01:31]} 33. Qxd1 {[%emt 0:00:12]} Rc8 {[%emt 0:05:12]} 34. c4 {[%emt 0:03:03]} Kg8 {[%emt 0:00:39]} 35. Nf5 {[%emt 0:00:51]} Bf8 {[%emt 0:00:08]} 36. Qg4+ {[%emt 0:00:44]} Kh8 {[%emt 0:00:29]} 37. Re7 {[%emt 0:01:54]} 1-0

[Event "WYCC 2018 O16"]
[Site "Halkidiki"]
[Date "2018.10.22"]
[Round "4"]
[White "Kaasen, Tor Fredrik"]
[Black "Zarubitski, Viachaslau"]
[Result "1-0"]
[ECO "A50"]
[WhiteElo "2388"]
[BlackElo "2417"]
[Annotator "NA"]
[PlyCount "103"]
[EventDate "2018.10.20"]
[EventType "swiss"]
[EventCountry "GRE"]
[SourceTitle "playchess.com"]
[Source "ChessBase"]
[SourceQuality "1"]
[TimeControl "40/5400+30:1800+30"]

1. d4 {[%emt 0:00:00]} Nf6 {[%emt 0:00:00]} 2. c4 {[%emt 0:00:00]} c6 {[%emt 0:00:00]} 3. Nf3 {[%emt 0:00:16]} d5 {[%emt 0:00:00]} 4. g3 {[%emt 0:00:09]} dxc4 {[%emt 0:00:08]} 5. Bg2 {[%emt 0:00:23]} b5 {[%emt 0:00:10]} 6. O-O {[%emt 0:00:42] D11: Slav Defence: 3 Nf3 sidelines and 3...Nf6 4 e3 Bg4} Bb7 {[%emt 0:00:33]} (6... e6 7. a4 Bb7 8. Ne5 a6 9. b3 cxb3 10. Qxb3 Be7 11. Nc3 b4 12. Rd1 a5 13. Bg5 O-O 14. Bxf6 gxf6 {1-0 (37) Mchedlishvili,M (2603)-Eljanov,P (2711) Riadh 2017}) 7. b3 {[%emt 0:00:38]} cxb3 {[%emt 0:00:15]} 8. axb3 {[%emt 0:00:20]} e6 {[%emt 0:00:36]} 9. Nc3 {[%emt 0:00:16]} Qb6 {[%emt 0:03:28]} 10. Ne5 {[%emt 0:04:58]} a5 {[%emt 0:05:33]} 11. e4 $146 {[%emt 0:07:40]} ({Predecessor:} 11. Qd3 Be7 12. Ne4 O-O 13. Ng5 Qd8 14. Bh3 Bc8 15. Bg2 Bb7 16. Bh3 Bc8 {½-½ (16) Stalmach,K (2564)-Neto,H (2584) ICCF email 2016}) 11... Bb4 {[%emt 0:02:02]} 12. Qd3 {[%emt 0:02:40]} O-O {[%emt 0:02:51]} 13. Be3 {[%emt 0:09:11]} Rd8 {[%emt 0:05:25]} 14. Rac1 {[%emt 0:02:11]} ({Better is} 14. Nxf7 $1 $14 Kxf7 15. e5) 14... Na6 {[%emt 0:06:38]} 15. Rfd1 {[%emt 0:07:19]} Ba3 {[%emt 0:07:03]} 16. Ra1 {[%emt 0:05:01]} Be7 {[%emt 0:05:50]} 17. Qe2 {[%emt 0:03:55]} Nb4 {[%emt 0:13:21]} (17... Bb4 $11 18. Rdc1 c5 19. Qxb5 Qxb5 20. Nxb5 Nxe4) 18. Rac1 {[%emt 0:03:07]} Rac8 {[%emt 0:05:28]} 19. d5 {[%emt 0:09:48]} c5 {[%emt 0:00:41]} 20. Bh3 {[%emt 0:01:18]} Ba6 {[%emt 0:19:00] [#]} 21. Nxf7 $1 {[%emt 0:03:10]} Kxf7 {[%emt 0:00:15]} 22. Bxe6+ {[%emt 0:00:07]} Ke8 {[%emt 0:02:56]} 23. Bg5 {[%emt 0:03:18]} Nc6 $2 {[%emt 0:10:11]} (23... Nbxd5 24. exd5 b4) 24. Bxc8 {[%emt 0:11:25]} Rxc8 $18 {[%emt 0:00:40]} 25. dxc6 {[%emt 0:00:08]} b4 {[%emt 0:00:13]} 26. Na4 {[%emt 0:00:19]} Qxc6 {[%emt 0:02:32]} 27. Qe3 {[%emt 0:00:47]} c4 {[%emt 0:01:57]} 28. Bxf6 {[%emt 0:06:22]} gxf6 {[%emt 0:01:13]} 29. Rd5 {[%emt 0:00:31]} c3 {[%emt 0:00:54]} 30. Qh6 {[%emt 0:03:16]} Bb7 {[%emt 0:01:27]} 31. Qh5+ {[%emt 0:04:49]} Kf8 {[%emt 0:00:03]} 32. Qxh7 {[%emt 0:00:16]} Qe6 {[%emt 0:00:27]} 33. Qh8+ {[%emt 0:01:31]} Kf7 {[%emt 0:00:12]} 34. Qh7+ {[%emt 0:00:56]} Kf8 {[%emt 0:00:09]} 35. Nc5 {[%emt 0:02:04]} Rxc5 {[%emt 0:01:54]} 36. Rxc5 {[%emt 0:00:03]} Bxe4 {[%emt 0:02:29]} 37. Qh8+ {[%emt 0:00:35]} Kf7 {[%emt 0:00:05]} 38. Rc8 {[%emt 0:00:04]} f5 {[%emt 0:01:19]} 39. Rg8 {[%emt 0:02:05]} Qd5 {[%emt 0:00:45]} 40. Qg7+ {[%emt 0:00:00]} Ke6 {[%emt 0:00:00]} 41. Qg6+ {[%emt 0:06:35]} Bf6 {[%emt 0:12:18]} 42. Rf8 {[%emt 0:01:44]} Qd4 {[%emt 0:01:01]} 43. Qf7+ {[%emt 0:00:22]} Kd6 {[%emt 0:00:15]} 44. Qxf6+ {[%emt 0:01:12]} Qxf6 {[%emt 0:00:08]} 45. Rxf6+ {[%emt 0:00:03]} Kc5 {[%emt 0:00:07]} 46. f3 {[%emt 0:01:33]} a4 {[%emt 0:01:14]} 47. fxe4 {[%emt 0:02:32]} axb3 {[%emt 0:00:01]} 48. Rxf5+ {[%emt 0:00:18]} Kd4 {[%emt 0:01:50]} 49. Rf2 {[%emt 0:00:13]} Kxe4 {[%emt 0:01:07]} 50. Rb1 {[%emt 0:01:53]} c2 {[%emt 0:00:07]} 51. Rc1 {[%emt 0:00:04]} Kd3 {[%emt 0:00:21]} 52. h4 {[%emt 0:00:30]} 1-0

[Event "WYCC 2018 O16"]
[Site "Halkidiki"]
[Date "2018.10.22"]
[Round "4"]
[White "Ibrahimli, Murad"]
[Black "Faerber, David"]
[Result "1-0"]
[ECO "D02"]
[WhiteElo "2379"]
[BlackElo "2279"]
[Annotator "NA"]
[PlyCount "105"]
[EventDate "2018.10.20"]
[EventType "swiss"]
[EventCountry "GRE"]
[SourceTitle "playchess.com"]
[Source "ChessBase"]
[SourceQuality "1"]
[TimeControl "40/5400+30:1800+30"]

1. d4 {[%emt 0:00:00]} d5 {[%emt 0:00:00]} 2. Nf3 {[%emt 0:00:00]} e6 {[%emt 0:00:09]} 3. c4 {[%emt 0:00:00]} a6 {[%emt 0:00:08]} 4. Qc2 {[%emt 0:06:50]} dxc4 {[%emt 0:05:36]} 5. Qxc4 {[%emt 0:00:06]} Nf6 {[%emt 0:02:35]} 6. g3 {[%emt 0:00:16]} b5 {[%emt 0:01:31]} 7. Qc2 {[%emt 0:00:09]} Bb7 {[%emt 0:01:24]} 8. Bg2 {[%emt 0:00:06]} Be7 {[%emt 0:05:40]} 9. O-O {[%emt 0:00:08]} O-O {[%emt 0:00:13]} 10. Bd2 {[%emt 0:01:02]} Be4 {[%emt 0:02:05]} 11. Qc1 {[%emt 0:00:06]} c6 {[%emt 0:01:47]} 12. Be3 {[%emt 0:13:20]} Nbd7 $11 {[%emt 0:10:40] LiveBook: 22 Games} 13. Nc3 {[%emt 0:06:49]} Bg6 {[%emt 0:08:15]} 14. Bg5 {[%emt 0:08:30]} Rc8 {[%emt 0:09:47]} 15. Rd1 {[%emt 0:03:01]} Nd5 {[%emt 0:06:50]} 16. Bxe7 {[%emt 0:03:28]} Qxe7 {[%emt 0:00:19]} 17. Qd2 {[%emt 0:01:38]} Nxc3 {[%emt 0:06:53]} 18. Qxc3 {[%emt 0:00:37]} c5 {[%emt 0:03:29]} 19. Qa3 {[%emt 0:01:34]} Nb8 {[%emt 0:06:01]} 20. Rac1 {[%emt 0:09:38]} b4 {[%emt 0:00:46]} 21. Qa5 {[%emt 0:00:25]} cxd4 {[%emt 0:02:26]} 22. Nxd4 {[%emt 0:00:17]} h6 {[%emt 0:05:56]} 23. Nc6 {[%emt 0:07:36]} Nxc6 {[%emt 0:00:51]} 24. Rxc6 {[%emt 0:00:10]} Rcd8 {[%emt 0:02:08]} 25. Rcc1 {[%emt 0:04:46]} Rd6 {[%emt 0:03:31]} 26. Bf3 {[%emt 0:03:55]} Rfd8 {[%emt 0:02:20]} 27. Rxd6 {[%emt 0:01:44]} Rxd6 {[%emt 0:02:08]} 28. h4 {[%emt 0:05:37]} e5 {[%emt 0:03:40]} 29. Bd5 {[%emt 0:14:21]} e4 {[%emt 0:02:14]} 30. Qxb4 {[%emt 0:01:39]} e3 {[%emt 0:01:14]} 31. Rc6 {[%emt 0:00:53]} exf2+ {[%emt 0:01:07]} 32. Kf1 {[%emt 0:00:08]} Bh5 {[%emt 0:02:08]} 33. Rc8+ {[%emt 0:01:06]} Kh7 {[%emt 0:00:12]} 34. Qe4+ {[%emt 0:00:03]} Qxe4 {[%emt 0:00:22]} 35. Bxe4+ {[%emt 0:00:01]} g6 {[%emt 0:00:50]} 36. Kxf2 {[%emt 0:00:06]} Rd4 {[%emt 0:01:22]} 37. Bd3 {[%emt 0:00:15]} Rd5 {[%emt 0:01:20]} 38. Rc7 {[%emt 0:00:49]} Kg7 {[%emt 0:00:27]} 39. Rxf7+ {[%emt 0:00:16]} Kxf7 {[%emt 0:00:24]} 40. Bc4 {[%emt 0:00:00]} Ke6 {[%emt 0:00:00]} 41. e4 {[%emt 0:00:03]} Ke5 {[%emt 0:00:24]} 42. exd5 {[%emt 0:00:07]} g5 {[%emt 0:00:19]} 43. hxg5 {[%emt 0:00:05]} hxg5 {[%emt 0:00:03]} 44. Bxa6 {[%emt 0:00:06]} Kxd5 {[%emt 0:00:04]} 45. Ke3 {[%emt 0:00:08]} Bg6 {[%emt 0:00:17]} 46. b4 {[%emt 0:00:06]} Bc2 {[%emt 0:00:12]} 47. Bb5 {[%emt 0:00:06]} Kd6 {[%emt 0:00:55]} 48. a4 {[%emt 0:00:05]} Kc7 {[%emt 0:00:05]} 49. a5 {[%emt 0:00:02]} Kb7 {[%emt 0:00:10]} 50. Bd3 {[%emt 0:00:07]} Bb3 {[%emt 0:00:05]} 51. b5 {[%emt 0:00:04]} Ba4 {[%emt 0:00:19]} 52. Kd4 {[%emt 0:00:06]} Bb3 {[%emt 0:00:04]} 53. Kc5 {[%emt 0:00:04]} 1-0

[Event "WYCC 2018 O16"]
[Site "Halkidiki"]
[Date "2018.10.22"]
[Round "4"]
[White "Lianes Garcia, Marcos"]
[Black "De Waele, Warre"]
[Result "1/2-1/2"]
[ECO "B20"]
[WhiteElo "2376"]
[BlackElo "2272"]
[Annotator "NA"]
[PlyCount "83"]
[EventDate "2018.10.20"]
[EventType "swiss"]
[EventCountry "GRE"]
[SourceTitle "playchess.com"]
[Source "ChessBase"]
[SourceQuality "1"]
[TimeControl "40/5400+30:1800+30"]

1. e4 {[%emt 0:00:00]} c5 {[%emt 0:00:00]} 2. g3 {[%emt 0:05:32]} d5 {[%emt 0:00:51]} 3. exd5 {[%emt 0:00:22]} Qxd5 {[%emt 0:00:06]} 4. Nf3 {[%emt 0:00:17]} Bg4 {[%emt 0:00:06]} 5. Bg2 {[%emt 0:00:35]} Qe6+ {[%emt 0:00:06]} 6. Kf1 {[%emt 0:00:38]} Nc6 {[%emt 0:00:12]} 7. h3 {[%emt 0:00:43]} Bh5 {[%emt 0:00:06]} 8. d3 {[%emt 0:01:42]} Qd7 {[%emt 0:03:29]} 9. Na3 {[%emt 0:01:44]} e6 {[%emt 0:11:27] LiveBook: 16 Games} 10. Nc4 {[%emt 0:05:13] B20: Sicilian: Unusual White 2nd moves} Nf6 {[%emt 0:00:25]} 11. g4 {[%emt 0:00:45]} Bg6 {[%emt 0:00:05]} 12. Nfe5 {[%emt 0:02:01]} Nxe5 {[%emt 0:00:07]} 13. Nxe5 {[%emt 0:00:03]} Qc7 {[%emt 0:12:06]} 14. Bf4 {[%emt 0:02:53]} Bd6 {[%emt 0:00:09]} 15. Nxg6 {[%emt 0:00:58]} hxg6 {[%emt 0:00:05]} 16. Bxd6 {[%emt 0:01:46]} Qxd6 {[%emt 0:00:06]} 17. Bxb7 {[%emt 0:06:52]} Rb8 {[%emt 0:03:10] [#]} 18. Qf3 $146 {[%emt 0:11:46]} O-O {[%emt 0:06:17]} 19. b3 Nd7 20. Re1 {[%emt 0:17:39]} Qc7 {[%emt 0:01:58] [#]} 21. Ba6 $1 {[%emt 0:01:36]} Qa5 {[%emt 0:05:25]} 22. Bc4 {[%emt 0:03:24]} Qxa2 {[%emt 0:00:21]} 23. h4 {[%emt 0:04:20]} Nb6 {[%emt 0:06:13]} 24. Re2 {[%emt 0:11:14]} Nxc4 {[%emt 0:14:41]} 25. dxc4 {[%emt 0:00:05]} Rfd8 {[%emt 0:00:11]} 26. Kg2 {[%emt 0:00:39]} Qb2 {[%emt 0:00:57]} 27. h5 {[%emt 0:01:24]} gxh5 {[%emt 0:02:20]} 28. Rxh5 {[%emt 0:05:06]} Qd4 {[%emt 0:03:55]} 29. Re4 $18 {[%emt 0:01:24]} Qb2 {[%emt 0:01:11]} 30. Re2 {[%emt 0:00:22]} Qd4 {[%emt 0:00:35]} 31. Re4 {[%emt 0:00:58]} Qb2 {[%emt 0:00:41]} 32. Rxc5 {[%emt 0:03:03]} Qxc2 {[%emt 0:00:46]} 33. Rc7 {[%emt 0:00:04]} Rf8 {[%emt 0:00:12]} 34. Re3 {[%emt 0:00:36]} a5 {[%emt 0:01:18]} 35. Ra7 {[%emt 0:01:10]} Qd2 {[%emt 0:01:50]} 36. Rd3 {[%emt 0:01:14]} Qb4 {[%emt 0:00:48]} 37. Qe4 {[%emt 0:06:13]} Qc5 {[%emt 0:02:05]} 38. Rh3 {[%emt 0:01:44]} g6 {[%emt 0:00:02]} 39. Rd7 {[%emt 0:02:44]} Rbd8 {[%emt 0:03:12]} 40. Rxd8 {[%emt 0:00:00]} Rxd8 {[%emt 0:00:00]} 41. Qf4 {[%emt 0:02:52]} Qd4 {[%emt 0:01:47]} 42. Qf3 {[%emt 0:14:40]} 1/2-1/2